fUST/lending_fUST_20250608
["ID","MTS","AMOUNT","RATE_DAILY","PERIOD"]
[365002328,1749390646056,-1694.59,0.00023287,4]
[365002329,1749390646079,-479.02,0.00023287,4]
[365002330,1749390646090,-440.0,0.00023287,4]
[365002331,1749390646100,-440.0,0.00023287,4]
[365002332,1749390646110,-440.0,0.00023287,4]
[365002333,1749390646119,-1274.66,0.00023287,4]
[365002334,1749390646129,-740.5,0.00023287,4]
[365002335,1749390646139,-440.0,0.00023287,4]
[365002336,1749390646149,-1713.04,0.00023287,4]
[365002337,1749390646160,-1190.13,0.00023287,4]
[365002338,1749390646170,-1548.59,0.00023287,4]
[365002339,1749390646181,-440.0,0.00023287,4]
[365002340,1749390646192,-337.27120988,0.00023287,4]
[365002341,1749390646204,-681.52,0.00023287,4]
[365002342,1749390646214,-509.86,0.00023287,4]
[365002344,1749390646223,-859.85,0.00023287,4]
[365002346,1749390646233,-500.0,0.00023287,7]
[365002348,1749390646242,-537.64,0.00023287,4]
[365002351,1749390646254,-151.0,0.000233,6]
[365002353,1749390646264,-215.0738,0.00023378,2]
[365002355,1749390646274,-500.0,0.00023498,2]
[365002357,1749390646283,-2000.0,0.000235,2]
[365002358,1749390646293,-724.6,0.00023561,4]
[365002359,1749390646302,-481.16,0.00023561,4]
[365002360,1749390646312,-683.91,0.00023561,4]
[365002361,1749390646323,-1243.53,0.00023561,4]
[365002362,1749390646334,-1439.97,0.00023561,4]
[365002363,1749390646345,-1694.59,0.00023561,4]
[365002364,1749390646355,-479.02,0.00023561,4]
[365002365,1749390646365,-440.0,0.00023561,4]
[365002366,1749390646375,-570.52,0.00023561,4]
[365002367,1749390646384,-440.0,0.00023561,4]
[365002368,1749390646394,-1274.66,0.00023561,4]
[365002369,1749390646405,-740.5,0.00023561,4]
[365002370,1749390646416,-440.0,0.00023561,4]
[365002371,1749390646427,-1713.04,0.00023561,4]
[365002372,1749390646437,-1190.13,0.00023561,4]
[365002373,1749390646447,-1548.59,0.00023561,4]
[365002374,1749390646457,-440.0,0.00023561,4]
[365002375,1749390646467,-681.52,0.00023561,4]
[365002376,1749390646477,-509.86,0.00023561,4]
[365002377,1749390646486,-859.85,0.00023561,4]
[365002378,1749390646495,-537.64,0.00023561,4]
[365002379,1749390646504,-500.0,0.00023579,2]
[365002380,1749390646514,-533.08,0.000236,11]
[365002381,1749390646524,-5055.18741471,0.00023653,2]
[365002382,1749390646534,-2000.0,0.00023698,7]
[365002383,1749390646543,-2000.0,0.00023698,7]
[365002384,1749390646553,-2000.0,0.00023698,7]
[365002385,1749390646562,-2000.0,0.00023698,7]
[365002386,1749390646572,-2000.0,0.00023698,7]
[365002387,1749390646581,-2000.0,0.00023698,7]
[365002388,1749390646591,-2000.0,0.00023698,7]
[365002389,1749390646601,-2000.0,0.00023698,7]
[365002390,1749390646610,-2000.0,0.00023698,7]
[365002391,1749390646620,-2000.0,0.00023698,7]
[365002392,1749390646629,-2000.0,0.00023698,7]
[365002393,1749390646639,-2000.0,0.00023698,7]
[365002394,1749390646648,-2000.0,0.00023698,7]
[365002395,1749390646658,-865.6946667,0.00023698,7]
[365002396,1749390646667,-963.0,0.00023698,2]
[365002397,1749390646677,-709.0,0.00023698,2]
[365002398,1749390646687,-2223.0,0.00023698,2]
[365002399,1749390646697,-247.364,0.00023698,2]
[365002400,1749390646708,-152.115,0.00023698,2]
[365002401,1749390646718,-235.529,0.00023698,2]
[365002402,1749390646728,-405.0,0.00023698,2]
[365002403,1749390646738,-250.0,0.00023698,2]
[365002404,1749390646747,-1993.46,0.00023734,2]
[365002405,1749390646757,-986.0138735,0.00023753,3]
[365002406,1749390646767,-311.3791089,0.00023753,2]
[365002407,1749390646777,-150.0,0.00023773,2]
[365002408,1749390646788,-1002.17805154,0.0002378,2]
[365002409,1749390646799,-36602.14713515,0.0002378,5]
[365002410,1749390646899,-512.63,0.00023013,4]
[365002411,1749390646910,-1959.33086571,0.0002378,5]
[365002412,1749390646922,-869.77412244,0.0002378,5]
[365002413,1749390646988,-429.93334264,0.00023287,4]
[365002414,1749390647000,-82.69665736,0.00023287,4]
[365002415,1749390647010,-512.63,0.00023561,4]
[365002416,1749390647021,-766.44504737,0.0002378,5]
[365002417,1749390647058,-44807.6905871,0.0002378,5]
[365002418,1749390647070,-2336.0566109,0.0002378,5]
[365002419,1749390647082,-5028.46370977,0.0002378,5]
[365002420,1749390675288,165.275927,0.00013699,2]
[365002449,1749391680619,158.369811,0.00013699,2]
[365002477,1749391831863,-376.577824,0.0001803,2]
[365002479,1749391831874,-264.46931227,0.00018174,2]
[365002481,1749391831886,-376.05923453,0.00018174,2]
[365002483,1749391831896,-300.0,0.00018434,2]
[365002484,1749391831906,-290.0,0.00018434,2]
[365002486,1749391831915,-300.0,0.00018434,2]
[365002488,1749391831926,-381.0,0.00018434,2]
[365002490,1749391831936,-24900.0,0.00018435,2]
[365002491,1749391831945,-3301.0,0.000185,2]
[365002492,1749391831955,-418.90032478,0.000189,2]
[365002493,1749391831965,-282.25678506,0.00019177,2]
[365002494,1749391831975,-500.0,0.00019177,2]
[365002495,1749391831985,-500.0,0.00019177,2]
[365002496,1749391831996,-501.32871,0.00019177,2]
[365002497,1749391832005,-500.0,0.00019177,2]
[365002498,1749391832015,-500.0,0.00019177,2]
[365002499,1749391832025,-500.0,0.00019177,2]
[365002500,1749391832035,-500.0,0.00019177,2]
[365002501,1749391832046,-500.0,0.00019177,2]
[365002502,1749391832056,-500.0,0.00019177,2]
[365002503,1749391832066,-500.0,0.00019177,2]
[365002504,1749391832075,-500.0,0.00019177,2]
[365002505,1749391832085,-500.930097,0.00019177,2]
[365002506,1749391832095,-500.0,0.00019177,2]
[365002507,1749391832105,-500.0,0.00019177,2]
[365002508,1749391832114,-500.0,0.00019177,2]
[365002509,1749391832124,-500.0,0.00019177,2]
[365002510,1749391832134,-500.0,0.00019177,2]
[365002511,1749391832144,-430.86821487,0.00019178,2]
[365002512,1749391832153,-440.0,0.00019178,2]
[365002513,1749391832163,-440.0,0.00019178,2]
[365002514,1749391832173,-440.0,0.00019178,2]
[365002515,1749391832184,-185.74958061,0.00019178,2]
[365002516,1749391832196,-440.0,0.00019178,2]
[365002517,1749391832206,-436.99421621,0.00019178,2]
[365002518,1749391832216,-430.0,0.00019178,2]
[365002519,1749391832226,-430.0,0.00019178,2]
[365002520,1749391832236,-541.6903197,0.00019178,2]
[365002521,1749391832246,-440.0,0.00019178,2]
[365002522,1749391832256,-440.0,0.00019178,2]
[365002523,1749391832267,-440.0,0.00019178,2]
[365002524,1749391832277,-251.46870042,0.00019178,2]
[365002525,1749391832288,-440.0,0.00019178,2]
[365002526,1749391832299,-440.0,0.00019178,2]
[365002527,1749391832308,-440.0,0.00019178,2]
[365002528,1749391832318,-440.0,0.00019178,2]
[365002529,1749391832328,-443.50844061,0.00019178,2]
[365002530,1749391832338,-444.61426903,0.00019178,2]
[365002531,1749391832348,-440.0,0.00019178,2]
[365002532,1749391832358,-363.25502656,0.00019178,2]
[365002533,1749391832368,-430.93983685,0.00019178,2]
[365002534,1749391832378,-440.90517857,0.00019178,2]
[365002535,1749391832390,-440.0,0.00019178,2]
[365002536,1749391832400,-430.0,0.00019178,2]
[365002537,1749391832410,-431.98597586,0.00019178,2]
[365002538,1749391832420,-430.0,0.00019178,2]
[365002539,1749391832429,-440.0,0.00019178,2]
[365002540,1749391832439,-341.7244571,0.00019178,2]
[365002541,1749391832449,-440.0,0.00019178,2]
[365002542,1749391832459,-440.0,0.00019178,2]
[365002543,1749391832469,-440.0,0.00019178,2]
[365002544,1749391832479,-440.0,0.00019178,2]
[365002545,1749391832488,-440.0,0.00019178,2]
[365002546,1749391832498,-316.52925184,0.00019178,2]
[365002547,1749391832507,-430.0,0.00019178,2]
[365002548,1749391832516,-310.0,0.00019178,2]
[365002549,1749391832526,-440.0,0.00019178,2]
[365002550,1749391832536,-440.0,0.00019178,2]
[365002551,1749391832546,-440.0,0.00019178,2]
[365002552,1749391832555,-430.0,0.00019178,2]
[365002553,1749391832565,-440.0,0.00019178,2]
[365002554,1749391832576,-500.0,0.00019178,2]
[365002555,1749391832586,-472.56967536,0.00019178,2]
[365002556,1749391832688,-27.43032464,0.00019178,2]
[365002557,1749391832698,-500.0,0.00019178,2]
[365002558,1749391832708,-440.0,0.00019178,2]
[365002559,1749391832717,-440.0,0.00019178,2]
[365002560,1749391832727,-430.0,0.00019178,2]
[365002561,1749391832737,-310.0,0.00019178,2]
[365002562,1749391832747,-431.27618514,0.00019178,2]
[365002563,1749391832756,-440.0,0.00019178,2]
[365002564,1749391832766,-440.0,0.00019178,2]
[365002565,1749391832775,-540.39180069,0.00019178,2]
[365002566,1749391832785,-440.0,0.00019178,2]
[365002567,1749391832795,-440.0,0.00019178,2]
[365002568,1749391832804,-582.73080363,0.00019178,2]
[365002569,1749391832814,-500.0,0.00019178,2]
[365002570,1749391832823,-500.0,0.00019178,2]
[365002571,1749391832832,-500.0,0.00019178,2]
[365002572,1749391832842,-400.0,0.00019178,2]
[365002573,1749391832851,-430.0,0.00019178,2]
[365002574,1749391832862,-318.86678483,0.00019178,2]
[365002575,1749391832871,-440.0,0.00019178,2]
[365002576,1749391832880,-440.0,0.00019178,2]
[365002577,1749391832890,-440.0,0.00019178,2]
[365002578,1749391832900,-230.1831846,0.00019178,2]
[365002579,1749391832910,-440.0,0.00019178,2]
[365002580,1749391832920,-440.0,0.00019178,2]
[365002581,1749391832931,-440.0,0.00019178,2]
[365002582,1749391832941,-440.0,0.00019178,2]
[365002583,1749391832951,-440.0,0.00019178,2]
[365002584,1749391832961,-286.61897784,0.00019178,2]
[365002585,1749391832971,-440.0,0.00019178,2]
[365002586,1749391832980,-427.3368377,0.00019178,2]
[365002587,1749391832990,-440.0,0.00019178,2]
[365002588,1749391833000,-440.0,0.00019178,2]
[365002589,1749391833009,-440.0,0.00019178,2]
[365002590,1749391833020,-186.90518659,0.00019178,2]
[365002591,1749391833029,-440.0,0.00019178,2]
[365002592,1749391833039,-171.32099445,0.00019178,2]
[365002593,1749391833052,-268.67900555,0.00019178,2]
[365002594,1749391833062,-205.94844485,0.00019178,2]
[365002624,1749391837730,-234.05155515,0.00019178,2]
[365002626,1749391837741,-440.0,0.00019178,2]
[365002628,1749391837751,-440.0,0.00019178,2]
[365002630,1749391837760,-440.0,0.00019178,2]
[365002631,1749391837771,-440.0,0.00019178,2]
[365002633,1749391837780,-440.0,0.00019178,2]
[365002635,1749391837790,-216.62490684,0.00019178,2]
[365002637,1749391837800,-440.0,0.00019178,2]
[365002639,1749391837810,-440.0,0.00019178,2]
[365002641,1749391837820,-440.0,0.00019178,2]
[365002643,1749391837830,-440.0,0.00019178,2]
[365002645,1749391837839,-440.0,0.00019178,2]
[365002647,1749391837849,-317.78238566,0.00019178,2]
[365002649,1749391837858,-440.0,0.00019178,2]
[365002651,1749391837868,-430.0,0.00019178,2]
[365002653,1749391837878,-253.98043544,0.00019178,2]
[365002655,1749391837888,-370.0,0.00019178,2]
[365002657,1749391837897,-400.0,0.00019178,2]
[365002659,1749391837907,-440.0,0.00019178,2]
[365002661,1749391837916,-440.0,0.00019178,2]
[365002663,1749391837926,-430.0,0.00019178,2]
[365002665,1749391837935,-440.0,0.00019178,2]
[365002667,1749391837945,-440.0,0.00019178,2]
[365002668,1749391837954,-357.76999194,0.00019178,2]
[365002670,1749391837964,-440.0,0.00019178,2]
[365002672,1749391837973,-440.0,0.00019178,2]
[365002674,1749391837983,-440.0,0.00019178,2]
[365002676,1749391837992,-350.0,0.00019178,2]
[365002678,1749391838002,-540.58418504,0.00019178,2]
[365002680,1749391838012,-430.0,0.00019178,2]
[365002683,1749391838022,-430.0,0.00019178,2]
[365002685,1749391838032,-430.0,0.00019178,2]
[365002687,1749391838041,-298.36482985,0.00019178,2]
[365002689,1749391838055,-141.63517015,0.00019178,2]
[365002691,1749391838065,-440.0,0.00019178,2]
[365002693,1749391838074,-408.19366394,0.00019178,2]
[365002695,1749391838084,-440.0,0.00019178,2]
[365002697,1749391838094,-440.0,0.00019178,2]
[365002699,1749391838104,-440.0,0.00019178,2]
[365002701,1749391838114,-430.0,0.00019178,2]
[365002702,1749391838123,-430.0,0.00019178,2]
[365002704,1749391838133,-430.0,0.00019178,2]
[365002706,1749391838142,-440.0,0.00019178,2]
[365002708,1749391838151,-440.0,0.00019178,2]
[365002710,1749391838161,-450.0,0.00019178,2]
[365002712,1749391838171,-410.0,0.00019178,2]
[365002714,1749391838180,-440.0,0.00019178,2]
[365002716,1749391838191,-440.0,0.00019178,2]
[365002718,1749391838201,-404.24566802,0.00019178,2]
[365002720,1749391838210,-440.0,0.00019178,2]
[365002722,1749391838219,-252.14247093,0.00019178,2]
[365002724,1749391838230,-440.0,0.00019178,2]
[365002726,1749391838239,-440.0,0.00019178,2]
[365002728,1749391838249,-440.0,0.00019178,2]
[365002730,1749391838258,-440.0,0.00019178,2]
[365002732,1749391838268,-450.0,0.00019178,2]
[365002733,1749391838278,-440.0,0.00019178,2]
[365002734,1749391838289,-440.0,0.00019178,2]
[365002735,1749391838300,-440.0,0.00019178,2]
[365002736,1749391838310,-440.0,0.00019178,2]
[365002737,1749391838319,-430.0,0.00019178,2]
[365002738,1749391838328,-440.0,0.00019178,2]
[365002739,1749391838338,-220.0,0.00019178,2]
[365002740,1749391838347,-440.0,0.00019178,2]
[365002741,1749391838359,-440.0,0.00019178,2]
[365002742,1749391838368,-430.0,0.00019178,2]
[365002743,1749391838377,-440.0,0.00019178,2]
[365002744,1749391838387,-440.0,0.00019178,2]
[365002745,1749391838397,-440.0,0.00019178,2]
[365002746,1749391838406,-440.0,0.00019178,2]
[365002747,1749391838415,-642.82,0.00019178,2]
[365002748,1749391838425,-440.0,0.00019178,2]
[365002749,1749391838434,-440.0,0.00019178,2]
[365002750,1749391838444,-440.0,0.00019178,2]
[365002751,1749391838453,-440.0,0.00019178,2]
[365002752,1749391838462,-440.0,0.00019178,2]
[365002753,1749391838472,-434.80726622,0.00019178,2]
[365002754,1749391838481,-440.0,0.00019178,2]
[365002755,1749391838490,-440.0,0.00019178,2]
[365002756,1749391838499,-325.37708043,0.00019178,2]
[365002757,1749391838509,-440.0,0.00019178,2]
[365002758,1749391838519,-440.0,0.00019178,2]
[365002759,1749391838529,-440.0,0.00019178,2]
[365002760,1749391838539,-440.0,0.00019178,2]
[365002761,1749391838548,-420.0,0.00019178,2]
[365002762,1749391838558,-440.0,0.00019178,2]
[365002763,1749391838568,-440.0,0.00019178,2]
[365002764,1749391838578,-440.0,0.00019178,2]
[365002765,1749391838587,-440.0,0.00019178,2]
[365002767,1749391838598,-440.0,0.00019178,2]
[365002768,1749391838608,-440.0,0.00019178,2]
[365002770,1749391838618,-430.0,0.00019178,2]
[365002772,1749391838628,-440.0,0.00019178,2]
[365002773,1749391838638,-440.0,0.00019178,2]
[365002774,1749391838647,-440.0,0.00019178,2]
[365002775,1749391838657,-925.96,0.00019178,2]
[365002776,1749391838667,-669.0,0.00019178,2]
[365002777,1749391838677,-440.0,0.00019178,2]
[365002778,1749391838686,-163.44,0.00019178,2]
[365002779,1749391838696,-440.0,0.00019178,2]
[365002780,1749391838706,-440.0,0.00019178,2]
[365002781,1749391838715,-440.0,0.00019178,2]
[365002782,1749391838725,-440.0,0.00019178,2]
[365002783,1749391838735,-440.0,0.00019178,2]
[365002784,1749391838744,-440.0,0.00019178,2]
[365002785,1749391838754,-440.0,0.00019178,2]
[365002786,1749391838764,-440.0,0.00019178,2]
[365002787,1749391838775,-440.0,0.00019178,2]
[365002788,1749391838785,-440.0,0.00019178,2]
[365002789,1749391838795,-440.0,0.00019178,2]
[365002790,1749391838806,-440.0,0.00019178,2]
[365002791,1749391838816,-440.0,0.00019178,2]
[365002792,1749391838825,-440.0,0.00019178,2]
[365002793,1749391838836,-444.63896894,0.00019178,2]
[365002794,1749391838846,-440.0,0.00019178,2]
[365002795,1749391838856,-440.0,0.00019178,2]
[365002796,1749391838866,-440.0,0.00019178,2]
[365002797,1749391838876,-440.0,0.00019178,2]
[365002798,1749391838886,-440.0,0.00019178,2]
[365002799,1749391838896,-440.0,0.00019178,2]
[365002800,1749391838906,-440.0,0.00019178,2]
[365002801,1749391838915,-440.0,0.00019178,2]
[365002802,1749391838925,-440.0,0.00019178,2]
[365002803,1749391838935,-440.0,0.00019178,2]
[365002804,1749391838945,-440.0,0.00019178,2]
[365002805,1749391838954,-805.97,0.00019178,2]
[365002806,1749391838964,-395.60790859,0.00019178,2]
[365002807,1749391838973,-440.0,0.00019178,2]
[365002808,1749391838983,-440.0,0.00019178,2]
[365002809,1749391838992,-440.0,0.00019178,2]
[365002810,1749391839001,-440.0,0.00019178,2]
[365002811,1749391839011,-717.64,0.00019178,2]
[365002812,1749391839020,-725.16,0.00019178,2]
[365002813,1749391839030,-440.0,0.00019178,2]
[365002814,1749391839039,-440.0,0.00019178,2]
[365002815,1749391839049,-440.0,0.00019178,2]
[365002816,1749391839058,-430.0,0.00019178,2]
[365002817,1749391839068,-362.64807872,0.00019178,2]
[365002818,1749391839078,-440.0,0.00019178,2]
[365002819,1749391839087,-440.0,0.00019178,2]
[365002820,1749391839097,-567.36,0.00019178,2]
[365002821,1749391839107,-440.0,0.00019178,2]
[365002822,1749391839116,-440.0,0.00019178,2]
[365002823,1749391839126,-440.0,0.00019178,2]
[365002824,1749391839136,-440.0,0.00019178,2]
[365002825,1749391839147,-417.0134311,0.00019178,2]
[365002826,1749391839156,-440.0,0.00019178,2]
[365002827,1749391839166,-505.68,0.00019178,2]
[365002828,1749391839176,-440.0,0.00019178,2]
[365002829,1749391839185,-440.0,0.00019178,2]
[365002830,1749391839209,-440.0,0.00019178,2]
[365002831,1749391839219,-440.0,0.00019178,2]
[365002832,1749391839230,-440.0,0.00019178,2]
[365002835,1749391839241,-440.0,0.00019178,2]
[365002837,1749391839250,-440.0,0.00019178,2]
[365002839,1749391839260,-440.0,0.00019178,2]
[365002841,1749391839273,-440.0,0.00019178,2]
[365002843,1749391839283,-440.0,0.00019178,2]
[365002845,1749391839293,-497.6614152,0.00019178,2]
[365002846,1749391839303,-440.0,0.00019178,2]
[365002847,1749391839313,-406.50780173,0.00019178,2]
[365002848,1749391839323,-262.47901835,0.00019178,2]
[365002849,1749391839333,-440.0,0.00019178,2]
[365002851,1749391839344,-440.0,0.00019178,2]
[365002852,1749391839353,-190.84,0.00019265,2]
[365002855,1749391839364,-500.0,0.0001945,2]
[365002857,1749391839373,-440.0,0.00019452,2]
[365002860,1749391839383,-525.48400121,0.00019452,2]
[365002863,1749391839393,-441.88165657,0.00019452,2]
[365002866,1749391839403,-315.68892623,0.00019452,2]
[365002868,1749391839414,-439.52261353,0.00019452,2]
[365002870,1749391839424,-440.0,0.00019452,2]
[365002872,1749391839434,-440.0,0.00019452,2]
[365002874,1749391839444,-404.75832504,0.00019452,2]
[365002876,1749391839453,-430.89943525,0.00019452,2]
[365002878,1749391839464,-440.0,0.00019452,2]
[365002880,1749391839474,-440.0,0.00019452,2]
[365002882,1749391839484,-394.48478447,0.00019452,2]
[365002884,1749391839494,-440.0,0.00019452,2]
[365002886,1749391839504,-449.89700149,0.00019452,2]
[365002888,1749391839514,-336.01161659,0.00019452,2]
[365002890,1749391839523,-440.0,0.00019452,2]
[365002892,1749391839533,-247.01886849,0.00019452,2]
[365002894,1749391839543,-309.55818577,0.00019452,2]
[365002896,1749391839553,-440.0,0.00019452,2]
[365002898,1749391839563,-354.84989898,0.00019452,2]
[365002900,1749391839573,-440.0,0.00019452,2]
[365002902,1749391839583,-440.0,0.00019452,2]
[365002904,1749391839592,-440.0,0.00019452,2]
[365002906,1749391839602,-440.0,0.00019452,2]
[365002908,1749391839612,-440.0,0.00019452,2]
[365002910,1749391839622,-440.0,0.00019452,2]
[365002912,1749391839633,-440.0,0.00019452,2]
[365002914,1749391839643,-440.0,0.00019452,2]
[365002916,1749391839653,-440.0,0.00019452,2]
[365002918,1749391839664,-440.0,0.00019452,2]
[365002920,1749391839674,-437.1189379,0.00019452,2]
[365002922,1749391839684,-410.0,0.00019452,2]
[365002924,1749391839694,-445.24345407,0.00019452,2]
[365002926,1749391839704,-440.0,0.00019452,2]
[365002928,1749391839713,-396.43430795,0.00019452,2]
[365002930,1749391839723,-440.0,0.00019452,2]
[365002932,1749391839734,-395.58520381,0.00019452,2]
[365002934,1749391839744,-387.06173836,0.00019452,2]
[365002936,1749391839754,-440.0,0.00019452,2]
[365002938,1749391839764,-440.0,0.00019452,2]
[365002941,1749391839774,-440.0,0.00019452,2]
[365002943,1749391839786,-440.0,0.00019452,2]
[365002945,1749391839796,-440.0,0.00019452,2]
[365002947,1749391839807,-440.0,0.00019452,2]
[365002949,1749391839816,-440.0,0.00019452,2]
[365002951,1749391839826,-440.0,0.00019452,2]
[365002953,1749391839836,-420.0,0.00019452,2]
[365002955,1749391839846,-406.5904271,0.00019452,2]
[365002957,1749391839856,-440.0,0.00019452,2]
[365002959,1749391839866,-440.0,0.00019452,2]
[365002961,1749391839877,-440.0,0.00019452,2]
[365002963,1749391839887,-440.0,0.00019452,2]
[365002965,1749391839897,-420.0,0.00019452,2]
[365002967,1749391839907,-440.0,0.00019452,2]
[365002969,1749391839917,-440.0,0.00019452,2]
[365002971,1749391839928,-440.0,0.00019452,2]
[365002973,1749391839937,-578.40060843,0.00019452,2]
[365002975,1749391839948,-440.0,0.00019452,2]
[365002977,1749391839958,-440.0,0.00019452,2]
[365002979,1749391839968,-440.0,0.00019452,2]
[365002981,1749391839978,-440.0,0.00019452,2]
[365002983,1749391839988,-440.0,0.00019452,2]
[365002985,1749391839998,-440.0,0.00019452,2]
[365002987,1749391840008,-440.0,0.00019452,2]
[365002989,1749391840018,-440.0,0.00019452,2]
[365002991,1749391840027,-440.0,0.00019452,2]
[365002993,1749391840038,-440.0,0.00019452,2]
[365002996,1749391840048,-390.0,0.00019452,2]
[365002997,1749391840058,-440.0,0.00019452,2]
[365002998,1749391840068,-642.82,0.00019452,2]
[365002999,1749391840078,-440.0,0.00019452,2]
[365003000,1749391840088,-440.0,0.00019452,2]
[365003001,1749391840098,-440.0,0.00019452,2]
[365003002,1749391840108,-440.0,0.00019452,2]
[365003003,1749391840118,-440.0,0.00019452,2]
[365003004,1749391840127,-440.0,0.00019452,2]
[365003005,1749391840137,-165.91499536,0.00019452,2]
[365003006,1749391840146,-440.0,0.00019452,2]
[365003007,1749391840155,-426.57418429,0.00019452,2]
[365003008,1749391840165,-440.0,0.00019452,2]
[365003009,1749391840174,-440.0,0.00019452,2]
[365003010,1749391840184,-440.0,0.00019452,2]
[365003011,1749391840196,-440.0,0.00019452,2]
[365003012,1749391840206,-440.0,0.00019452,2]
[365003013,1749391840216,-440.0,0.00019452,2]
[365003014,1749391840225,-440.0,0.00019452,2]
[365003015,1749391840235,-440.0,0.00019452,2]
[365003016,1749391840244,-440.0,0.00019452,2]
[365003017,1749391840254,-440.0,0.00019452,2]
[365003018,1749391840264,-925.96,0.00019452,2]
[365003019,1749391840273,-669.0,0.00019452,2]
[365003020,1749391840282,-474.92142264,0.00019452,2]
[365003021,1749391840292,-440.0,0.00019452,2]
[365003022,1749391840302,-440.0,0.00019452,2]
[365003023,1749391840311,-440.0,0.00019452,2]
[365003024,1749391840322,-440.0,0.00019452,2]
[365003025,1749391840332,-440.0,0.00019452,2]
[365003026,1749391840342,-279.4512484,0.00019452,2]
[365003027,1749391840353,-440.0,0.00019452,2]
[365003028,1749391840495,-440.0,0.00019452,2]
[365003029,1749391840506,-440.0,0.00019452,2]
[365003030,1749391840516,-440.0,0.00019452,2]
[365003031,1749391840527,-440.0,0.00019452,2]
[365003032,1749391840537,-440.0,0.00019452,2]
[365003033,1749391840547,-386.60819042,0.00019452,2]
[365003034,1749391840558,-440.0,0.00019452,2]
[365003035,1749391840568,-440.0,0.00019452,2]
[365003036,1749391840577,-440.0,0.00019452,2]
[365003037,1749391840587,-805.97,0.00019452,2]
[365003038,1749391840596,-440.0,0.00019452,2]
[365003039,1749391840606,-177.6915262,0.00019452,2]
[365003040,1749391840615,-440.0,0.00019452,2]
[365003041,1749391840626,-717.64,0.00019452,2]
[365003042,1749391840635,-725.16,0.00019452,2]
[365003043,1749391840646,-440.0,0.00019452,2]
[365003044,1749391840656,-440.0,0.00019452,2]
[365003045,1749391840666,-440.0,0.00019452,2]
[365003046,1749391840676,-440.0,0.00019452,2]
[365003047,1749391840685,-440.0,0.00019452,2]
[365003048,1749391840696,-567.36,0.00019452,2]
[365003049,1749391840706,-440.0,0.00019452,2]
[365003050,1749391840716,-426.5246249,0.00019452,2]
[365003051,1749391840725,-440.0,0.00019452,2]
[365003052,1749391840735,-440.0,0.00019452,2]
[365003053,1749391840745,-505.68,0.00019452,2]
[365003054,1749391840755,-440.0,0.00019452,2]
[365003055,1749391840765,-440.0,0.00019452,2]
[365003056,1749391840775,-440.0,0.00019452,2]
[365003057,1749391840786,-440.0,0.00019452,2]
[365003058,1749391840796,-440.0,0.00019452,2]
[365003059,1749391840806,-440.0,0.00019452,2]
[365003060,1749391840816,-419.65338663,0.00019452,2]
[365003061,1749391840827,-440.0,0.00019452,2]
[365003062,1749391840837,-500.50538099,0.00019496,2]
[365003063,1749391840848,-500.0,0.00019505,2]
[365003064,1749391840858,-532.98731685,0.00019513,2]